fUST/lending_fUST_20250106
["ID","MTS","AMOUNT","RATE_DAILY","PERIOD"]
[347799862,1736113851577,-500.0,0.00021121,3]
[347799863,1736113851588,-500.0,0.00021121,3]
[347799864,1736113851598,-500.0,0.00021121,3]
[347799865,1736113851608,-500.0,0.00021121,3]
[347799866,1736113851619,-500.0,0.00021121,3]
[347799867,1736113851629,-500.0,0.00021121,3]
[347799868,1736113851639,-500.0,0.00021128,3]
[347799869,1736113851649,-500.0,0.00021128,3]
[347799870,1736113851659,-500.0,0.00021128,3]
[347799871,1736113851668,-503.71,0.00021128,3]
[347799872,1736113851677,-500.0,0.00021128,3]
[347799873,1736113851687,-500.0,0.00021128,3]
[347799874,1736113851698,-500.0,0.00021128,3]
[347799875,1736113851708,-500.0,0.00021128,3]
[347799876,1736113851717,-500.0,0.00021128,3]
[347799877,1736113851726,-500.0,0.00021128,3]
[347799878,1736113851735,-500.0,0.00021128,3]
[347799879,1736113851746,-500.0,0.00021128,3]
[347799880,1736113851758,-500.0,0.00021128,3]
[347799881,1736113851768,-500.0,0.00021128,3]
[347799882,1736113851779,-500.0,0.00021128,3]
[347799883,1736113851790,-500.0,0.00021128,3]
[347799884,1736113851802,-500.0,0.00021128,3]
[347799885,1736113851811,-500.0,0.00021128,3]
[347799886,1736113851822,-500.0,0.00021128,3]
[347799887,1736113851832,-500.0,0.00021128,3]
[347799888,1736113851843,-500.0,0.00021128,3]
[347799889,1736113851856,-500.0,0.00021128,3]
[347799890,1736113851868,-643.05,0.00021128,3]
[347799891,1736113851879,-500.0,0.00021128,3]
[347799892,1736113851890,-500.0,0.00021128,3]
[347799893,1736113851899,-4425.71421264,0.00021141,2]
[347799894,1736113851910,-173.81914418,0.00021151,2]
[347799895,1736113851920,-500.0,0.00021162,3]
[347799896,1736113851930,-236.51,0.00021162,3]
[347799897,1736113851939,-500.0,0.00021162,3]
[347799898,1736113851949,-9560.33,0.00021162,3]
[347799899,1736113851959,-500.0,0.00021162,3]
[347799900,1736113851968,-151.0,0.00021163,2]
[347799901,1736113851978,-690.37,0.00021163,3]
[347799902,1736113851987,-527.85,0.00021163,3]
[347799903,1736113851998,-151.0,0.00021163,2]
[347799904,1736113852009,-500.0,0.00021163,3]
[347799905,1736113852018,-604.01,0.00021163,3]
[347799906,1736113852028,-651.65,0.00021163,3]
[347799907,1736113852037,-1177.18,0.00021164,3]
[347799908,1736113852047,-163.063005,0.00021164,2]
[347799909,1736113852056,-163.063005,0.00021164,2]
[347799910,1736113852066,-500.0,0.00021164,3]
[347799911,1736113852076,-500.0,0.00021164,3]
[347799912,1736113852086,-500.0,0.00021164,3]
[347799913,1736113852095,-151.0,0.00021164,2]
[347799914,1736113852106,-151.0,0.00021164,2]
[347799915,1736113852115,-151.0,0.00021164,2]
[347799916,1736113852124,-151.0,0.00021164,2]
[347799917,1736113852133,-151.0,0.00021164,2]
[347799918,1736113852143,-151.0,0.00021164,2]
[347799919,1736113852151,-500.0,0.00021164,3]
[347799920,1736113852160,-500.0,0.00021164,3]
[347799921,1736113852169,-151.0,0.00021164,2]
[347799922,1736113852179,-500.0,0.00021164,3]
[347799923,1736113852188,-500.0,0.00021164,3]
[347799924,1736113852198,-156.767611,0.00021164,2]
[347799925,1736113852207,-156.767611,0.00021164,2]
[347799926,1736113852217,-315.219847,0.00021164,2]
[347799927,1736113852226,-315.219847,0.00021164,2]
[347799928,1736113852236,-315.219847,0.00021164,2]
[347799929,1736113852245,-315.219847,0.00021164,2]
[347799930,1736113852256,-315.219847,0.00021164,2]
[347799931,1736113852266,-315.219847,0.00021164,2]
[347799932,1736113852275,-582.06,0.00021164,3]
[347799933,1736113852284,-500.0,0.00021164,3]
[347799934,1736113852293,-500.0,0.00021164,3]
[347799935,1736113852302,-532.29652613,0.00021164,3]
[347799936,1736113852312,-500.0,0.00021164,3]
[347799937,1736113852321,-500.0,0.00021164,3]
[347799938,1736113852331,-513.24879858,0.00021164,3]
[347799939,1736113852341,-500.0,0.00021164,3]
[347799940,1736113852351,-151.0,0.00021164,2]
[347799941,1736113852360,-200.303502,0.00021164,2]
[347799942,1736113852370,-527.85,0.00021164,3]
[347799943,1736113852380,-200.303502,0.00021164,2]
[347799944,1736113852390,-151.0,0.00021164,2]
[347799945,1736113852399,-651.65,0.00021164,3]
[347799946,1736113852408,-151.0,0.00021165,2]
[347799947,1736113852418,-151.0,0.00021165,2]
[347799948,1736113852428,-151.0,0.00021165,2]
[347799949,1736113852437,-151.0,0.00021165,2]
[347799950,1736113852446,-163.063005,0.00021165,2]
[347799951,1736113852455,-163.063005,0.00021165,2]
[347799952,1736113852465,-151.0,0.00021165,2]
[347799953,1736113852474,-151.0,0.00021165,2]
[347799954,1736113852484,-151.0,0.00021165,2]
[347799955,1736113852494,-151.0,0.00021165,2]
[347799956,1736113852503,-156.767611,0.00021165,2]
[347799957,1736113852512,-156.767611,0.00021165,2]
[347799958,1736113852522,-500.0,0.00021165,3]
[347799959,1736113852531,-500.0,0.00021165,3]
[347799960,1736113852540,-151.0,0.00021166,2]
[347799961,1736113852549,-206.825198,0.00021166,2]
[347799962,1736113852558,-151.0,0.00021166,2]
[347799963,1736113852567,-151.0,0.00021166,2]
[347799964,1736113852577,-216.899155,0.00021166,2]
[347799965,1736113852586,-151.0,0.00021166,2]
[347799966,1736113852595,-216.899155,0.00021166,2]
[347799967,1736113852605,-151.0,0.00021166,2]
[347799968,1736113852614,-151.0,0.00021166,2]
[347799969,1736113852623,-151.0,0.00021166,2]
[347799970,1736113852632,-151.0,0.00021166,2]
[347799971,1736113852642,-151.0,0.00021166,2]
[347799972,1736113852651,-151.0,0.00021166,2]
[347799973,1736113852660,-151.0,0.00021166,2]
[347799974,1736113852670,-151.0,0.00021166,2]
[347799975,1736113852680,-200.303502,0.00021166,2]
[347799976,1736113852689,-527.85,0.00021166,3]
[347799977,1736113852699,-200.303502,0.00021166,2]
[347799978,1736113852708,-151.0,0.00021166,2]
[347799979,1736113852718,-651.65,0.00021166,3]
[347799980,1736113852729,-154.982918,0.00021167,2]
[347799981,1736113852739,-151.0,0.00021167,2]
[347799982,1736113852749,-151.0,0.00021167,2]
[347799983,1736113852758,-172.954272,0.00021167,2]
[347799984,1736113852768,-151.0,0.00021167,2]
[347799985,1736113852778,-151.0,0.00021167,2]
[347799986,1736113852789,-151.0,0.00021167,2]
[347799987,1736113852800,-151.0,0.00021167,2]
[347799988,1736113852809,-151.0,0.00021167,2]
[347799989,1736113852818,-216.899155,0.00021167,2]
[347799990,1736113852828,-151.0,0.00021167,2]
[347799991,1736113852839,-216.899155,0.00021167,2]
[347799992,1736113852849,-151.0,0.00021167,2]
[347799993,1736113852859,-500.0,0.00021167,3]
[347799994,1736113852868,-500.0,0.00021167,3]
[347799995,1736113852877,-500.0,0.00021167,3]
[347799996,1736113852887,-1852.24,0.00021167,3]
[347799997,1736113852898,-500.0,0.00021167,3]
[347799998,1736113852908,-500.0,0.00021167,3]
[347799999,1736113852917,-500.0,0.00021167,2]
[347800000,1736113852928,-359.27331547,0.00021173,2]
[347800001,1736113852937,-151.0,0.00021173,2]
[347800002,1736113852947,-151.0,0.00021173,2]
[347800003,1736113852956,-151.0,0.00021173,2]
[347800004,1736113852966,-163.063005,0.00021173,2]
[347800005,1736113852975,-163.063005,0.00021173,2]
[347800006,1736113852984,-151.0,0.00021173,2]
[347800007,1736113852993,-151.0,0.00021173,2]
[347800008,1736113853004,-151.0,0.00021173,2]
[347800009,1736113853014,-151.0,0.00021173,2]
[347800010,1736113853023,-151.0,0.00021173,2]
[347800011,1736113853033,-156.767611,0.00021173,2]
[347800012,1736113853044,-156.767611,0.00021173,2]
[347800013,1736113853054,-315.219847,0.00021173,2]
[347800014,1736113853063,-315.219847,0.00021173,2]
[347800015,1736113853072,-4425.71421264,0.00021245,2]
[347800016,1736113853082,-151.0,0.00021266,2]
[347800017,1736113853091,-151.0,0.00021266,2]
[347800018,1736113853100,-151.0,0.00021266,2]
[347800019,1736113853110,-151.0,0.00021273,2]
[347800020,1736113853120,-151.0,0.00021273,2]
[347800021,1736113853130,-429.030012,0.00021342,2]
[347800022,1736113853141,-153.693575,0.00021342,2]
[347800023,1736113853153,-4425.71421264,0.00021348,2]
[347800024,1736113853163,-500.0,0.00021373,2]
[347800025,1736113853173,-200.303502,0.00021373,2]
[347800026,1736113853184,-200.303502,0.00021373,2]
[347800027,1736113853193,-151.0,0.00021382,2]
[347800028,1736113853203,-151.0,0.00021382,2]
[347800029,1736113853212,-151.0,0.00021382,2]
[347800030,1736113853222,-151.0,0.00021382,2]
[347800031,1736113853231,-151.0,0.00021382,2]
[347800032,1736113853240,-151.0,0.0002139,2]
[347800033,1736113853250,-151.0,0.0002139,2]
[347800034,1736113853259,-151.0,0.0002139,2]
[347800035,1736113853268,-151.0,0.0002139,2]
[347800036,1736113853278,-216.899155,0.0002139,2]
[347800037,1736113853287,-151.0,0.0002139,2]
[347800038,1736113853296,-216.899155,0.0002139,2]
[347800039,1736113853305,-169.740492,0.0002139,2]
[347800040,1736113853314,-500.0,0.00021394,3]
[347800041,1736113853324,-500.0,0.00021394,3]
[347800042,1736113853333,-500.0,0.00021394,3]
[347800043,1736113853342,-1325.99,0.00021394,3]
[347800044,1736113853352,-726.67,0.00021394,3]
[347800045,1736113853361,-500.0,0.00021395,3]
[347800046,1736113853371,-500.0,0.00021395,3]
[347800047,1736113853380,-500.0,0.00021395,3]
[347800048,1736113853390,-500.0,0.00021395,3]
[347800049,1736113853399,-500.0,0.00021395,3]
[347800050,1736113853408,-500.0,0.00021395,3]
[347800051,1736113853418,-500.0,0.00021395,3]
[347800052,1736113853427,-500.0,0.00021395,3]
[347800053,1736113853436,-500.0,0.00021395,3]
[347800054,1736113853446,-555.74,0.00021395,3]
[347800055,1736113853455,-500.0,0.00021395,3]
[347800056,1736113853464,-527.85,0.00021398,3]
[347800057,1736113853544,-651.65,0.00021398,3]
[347800058,1736113853554,-151.0,0.00021399,2]
[347800059,1736113853564,-151.0,0.00021399,2]
[347800060,1736113853575,-151.0,0.00021399,2]
[347800061,1736113853585,-527.85,0.00021399,3]
[347800062,1736113853595,-527.85,0.00021399,3]
[347800063,1736113853604,-527.85,0.00021399,3]
[347800064,1736113853614,-527.85,0.00021399,3]
[347800065,1736113853626,-527.85,0.00021399,3]
[347800066,1736113853636,-528.02839224,0.00021399,3]
[347800067,1736113853646,-651.65,0.00021399,3]
[347800068,1736113853658,-651.65,0.00021399,3]
[347800069,1736113853669,-651.65,0.00021399,3]
[347800070,1736113853679,-651.65,0.00021399,3]
[347800071,1736113853690,-651.65,0.00021399,3]
[347800072,1736113853700,-651.70185688,0.00021399,3]
[347800073,1736113853710,-14544.04237476,0.000214,2]
[347800074,1736113853721,-14544.04237475,0.000214,2]
[347800075,1736113853732,-14544.04237475,0.000214,2]
[347800076,1736113853742,-151.0,0.000214,2]
[347800077,1736113853752,-151.0,0.000214,2]
[347800078,1736113853764,-151.0,0.000214,2]
[347800079,1736113853775,-151.0,0.000214,2]
[347800080,1736113853785,-151.0,0.000214,2]
[347800081,1736113853796,-151.0,0.000214,2]
[347800082,1736113853808,-151.0,0.000214,2]
[347800083,1736113853819,-151.0,0.000214,2]
[347800084,1736113853828,-151.0,0.000214,2]
[347800085,1736113853842,-151.0,0.000214,2]
[347800086,1736113853851,-151.0,0.000214,2]
[347800087,1736113853860,-216.899155,0.000214,2]
[347800088,1736113853871,-151.0,0.000214,2]
[347800089,1736113853882,-216.899155,0.000214,2]
[347800090,1736113853891,-151.0,0.000214,2]
[347800091,1736113853902,-151.0,0.000214,2]
[347800092,1736113853914,-151.0,0.000214,2]
[347800093,1736113853923,-151.0,0.000214,2]
[347800094,1736113853933,-151.0,0.000214,2]
[347800095,1736113853944,-151.0,0.000214,2]
[347800096,1736113853954,-163.063005,0.000214,2]
[347800097,1736113853964,-163.063005,0.000214,2]
[347800098,1736113853974,-163.063005,0.000214,2]
[347800099,1736113853986,-163.063005,0.000214,2]
[347800100,1736113853996,-151.0,0.000214,2]
[347800101,1736113854005,-151.0,0.000214,2]
[347800102,1736113854015,-226.587084,0.000214,2]
[347800103,1736113854024,-151.0,0.000214,2]
[347800104,1736113854033,-151.0,0.000214,2]
[347800105,1736113854042,-151.0,0.000214,2]
[347800106,1736113854051,-271.128376,0.000214,2]
[347800107,1736113854061,-151.0,0.000214,2]
[347800108,1736113854070,-156.767611,0.000214,2]
[347800109,1736113854081,-156.767611,0.000214,2]
[347800110,1736113854091,-156.767611,0.000214,2]
[347800111,1736113854101,-156.767611,0.000214,2]
[347800112,1736113854110,-315.219847,0.000214,2]
[347800113,1736113854119,-315.219847,0.000214,2]
[347800114,1736113854129,-315.219847,0.000214,2]
[347800115,1736113854138,-315.219847,0.000214,2]
[347800116,1736113854148,-200.303502,0.000214,2]
[347800117,1736113854157,-200.303508,0.000214,2]
[347800118,1736113854167,-500.0,0.00021402,3]
[347800119,1736113854176,-500.0,0.00021402,3]
[347800120,1736113854187,-500.0,0.00021402,3]
[347800121,1736113854198,-500.0,0.00021402,3]
[347800122,1736113854210,-500.0,0.00021402,3]
[347800123,1736113854220,-500.0,0.00021402,3]
[347800124,1736113854230,-500.0,0.00021402,3]
[347800125,1736113854239,-500.0,0.00021402,3]
[347800126,1736113854248,-500.0,0.00021402,3]
[347800127,1736113854258,-160.47,0.00021402,3]
[347800128,1736113854268,-500.0,0.00021402,3]
[347800129,1736113854278,-274.3,0.00021402,3]
[347800130,1736113854288,-500.0,0.00021402,3]
[347800131,1736113854297,-721.46198207,0.00021421,2]
[347800132,1736113854307,-1000.0,0.00021421,2]
[347800133,1736113854316,-500.0,0.00021436,3]
[347800134,1736113854325,-500.0,0.00021436,3]
[347800135,1736113854335,-9560.33,0.00021436,3]
[347800136,1736113854348,-500.0,0.00021436,3]
[347800137,1736113854359,-690.37,0.00021437,3]
[347800138,1736113854369,-500.0,0.00021437,3]
[347800139,1736113854378,-604.01,0.00021437,3]
[347800140,1736113854387,-151.0,0.00021438,2]
[347800141,1736113854396,-1177.18,0.00021438,3]
[347800142,1736113854406,-500.0,0.00021438,3]
[347800143,1736113854415,-500.0,0.00021438,3]
[347800144,1736113854424,-151.0,0.00021438,2]
[347800145,1736113854434,-500.0,0.00021438,3]
[347800146,1736113854443,-315.219847,0.00021438,2]
[347800147,1736113854471,-315.219847,0.00021438,2]
[347800148,1736113854480,-500.0,0.00021438,3]
[347800149,1736113854489,-500.0,0.00021438,3]
[347800150,1736113854498,-151.0,0.00021439,2]
[347800151,1736113854508,-151.0,0.00021439,2]
[347800152,1736113854517,-151.0,0.00021439,2]
[347800153,1736113854526,-151.0,0.00021439,2]
[347800154,1736113854536,-151.0,0.00021439,2]
[347800155,1736113854546,-151.0,0.00021439,2]
[347800156,1736113854555,-151.0,0.00021439,2]
[347800157,1736113854565,-163.063005,0.00021439,2]
[347800158,1736113854575,-163.063005,0.00021439,2]
[347800159,1736113854585,-151.0,0.00021439,2]
[347800160,1736113854596,-156.767611,0.00021439,2]
[347800161,1736113854607,-156.767611,0.00021439,2]
[347800162,1736113854619,-500.0,0.00021439,3]
[347800163,1736113854630,-500.0,0.00021439,3]
[347800164,1736113854640,-151.0,0.0002144,2]
[347800165,1736113854650,-151.0,0.0002144,2]
[347800166,1736113854660,-216.899155,0.0002144,2]
[347800167,1736113854671,-216.899155,0.0002144,2]
[347800168,1736113854680,-151.0,0.0002144,2]
[347800169,1736113854692,-151.0,0.0002144,2]
[347800170,1736113854703,-151.0,0.0002144,2]
[347800171,1736113854715,-151.0,0.0002144,2]
[347800172,1736113854726,-151.0,0.0002144,2]
[347800173,1736113854736,-151.0,0.0002144,2]
[347800174,1736113854746,-151.0,0.00021441,2]
[347800175,1736113854755,-151.0,0.00021441,2]
[347800176,1736113854764,-151.0,0.00021441,2]
[347800177,1736113854774,-151.0,0.00021441,2]
[347800178,1736113854786,-151.0,0.00021441,2]
[347800179,1736113854797,-1852.24,0.00021441,3]
[347800180,1736113854807,-500.0,0.00021441,3]
[347800181,1736113854817,-500.0,0.00021441,3]
[347800182,1736113854826,-500.0,0.00021441,2]
[347800183,1736113854838,-151.0,0.00021447,2]
[347800184,1736113854848,-151.0,0.00021447,2]
[347800185,1736113854859,-151.0,0.00021447,2]
[347800186,1736113854871,-151.0,0.00021447,2]
[347800187,1736113854880,-216.899155,0.00021447,2]
[347800188,1736113854891,-216.899155,0.00021447,2]
[347800189,1736113854903,-4425.71421264,0.00021452,2]
[347800190,1736113854915,-4203.08406853,0.000215,2]
[347800191,1736113854925,-428.66810688,0.0002152,2]
[347800192,1736113854935,-422.28788015,0.0002152,2]
[347800193,1736113854945,-500.0,0.0002152,2]
[347800194,1736113854955,-500.0,0.0002152,2]
[347800195,1736113854964,-151.0,0.00021546,2]
[347800196,1736113854974,-151.0,0.00021546,2]
[347800197,1736113854984,-151.0,0.00021547,2]
[347800198,1736113854994,-163.063005,0.00021547,2]
[347800199,1736113855004,-163.063005,0.00021547,2]
[347800200,1736113855015,-151.0,0.00021547,2]
[347800201,1736113855024,-151.0,0.00021547,2]
[347800202,1736113855034,-156.767611,0.00021547,2]
[347800203,1736113855045,-156.767611,0.00021547,2]
[347800204,1736113855054,-315.219847,0.00021547,2]
[347800205,1736113855063,-315.219847,0.00021547,2]
[347800206,1736113855073,-4425.71421264,0.00021555,2]
[347800207,1736113855083,-173.81914418,0.00021585,2]
[347800208,1736113855092,-1179.0,0.000216,4]
[347800209,1736113855101,-151.0,0.00021613,2]
[347800210,1736113855111,-14544.04237475,0.00021621,2]
[347800211,1736113855120,-151.0,0.00021621,2]
[347800212,1736113855129,-151.0,0.00021621,2]
[347800213,1736113855139,-151.0,0.00021621,2]
[347800214,1736113855148,-151.0,0.00021621,2]
[347800215,1736113855158,-177.216676,0.00021621,2]
[347800216,1736113855167,-216.899155,0.00021621,2]
[347800217,1736113855177,-151.0,0.00021621,2]
[347800218,1736113855187,-216.899155,0.00021621,2]
[347800219,1736113855196,-151.0,0.00021621,2]
[347800220,1736113855206,-151.0,0.00021621,2]
[347800221,1736113855216,-151.0,0.00021621,2]
[347800222,1736113855227,-151.0,0.00021621,2]
[347800223,1736113855236,-151.0,0.00021621,2]
[347800224,1736113855247,-153.061922,0.00021621,2]
[347800225,1736113855256,-4425.71421264,0.00021659,2]
[347800226,1736113855266,-500.0,0.00021668,3]
[347800227,1736113855276,-500.0,0.00021668,3]
[347800228,1736113855287,-500.0,0.00021668,3]
[347800229,1736113855297,-1325.99,0.00021668,3]
[347800230,1736113855306,-726.67,0.00021668,3]
[347800231,1736113855317,-500.0,0.00021669,3]
[347800232,1736113855328,-500.0,0.00021669,3]
[347800233,1736113855337,-405.84,0.00021669,3]
[347800234,1736113855348,-500.0,0.00021669,3]
[347800235,1736113855359,-500.0,0.00021669,3]
[347800236,1736113855370,-500.0,0.00021669,3]
[347800237,1736113855379,-500.0,0.00021669,3]
[347800238,1736113855456,-500.0,0.00021669,3]
[347800239,1736113855467,-500.0,0.00021669,3]
[347800240,1736113855476,-500.0,0.00021669,3]
[347800241,1736113855486,-500.0,0.00021676,3]
[347800242,1736113855497,-500.0,0.00021676,3]
[347800243,1736113855508,-500.0,0.00021676,3]
[347800244,1736113855519,-500.0,0.00021676,3]
[347800245,1736113855530,-500.0,0.00021676,3]
[347800246,1736113855539,-379.59131226,0.00021676,3]
[347800247,1736113855548,-201.64482303,0.00021676,3]
[347800248,1736113855559,-563.22,0.00021676,3]
[347800249,1736113855570,-500.0,0.00021676,3]
[347800250,1736113855580,-500.0,0.00021676,3]
[347800251,1736113855590,-500.0,0.00021676,3]
[347800252,1736113855599,-13088.78,0.000217,2]
[347800253,1736113855609,-9362.02,0.000217,2]
[347800254,1736113855618,-5362.52,0.000217,2]
[347800255,1736113855627,-500.0,0.0002171,3]
[347800256,1736113855636,-500.0,0.0002171,3]
[347800257,1736113855646,-9560.33,0.0002171,3]
[347800258,1736113855655,-500.0,0.0002171,3]
[347800259,1736113855665,-690.37,0.00021711,3]
[347800260,1736113855674,-604.01,0.00021711,3]
[347800261,1736113855692,-1177.18,0.00021712,3]
[347800262,1736113855702,-163.063005,0.00021712,2]
[347800263,1736113855711,-163.063005,0.00021712,2]
[347800264,1736113855720,-500.0,0.00021712,7]
[347800265,1736113855729,-151.0,0.00021712,2]
[347800266,1736113855739,-269.203375,0.00021712,2]
[347800267,1736113855747,-500.0,0.00021712,3]
[347800268,1736113855756,-156.767611,0.00021712,2]
[347800269,1736113855766,-156.767611,0.00021712,2]
[347800270,1736113855775,-315.219847,0.00021712,2]
[347800271,1736113855784,-315.219839,0.00021712,2]
[347800272,1736113855794,-151.0,0.00021713,2]
[347800273,1736113855803,-151.0,0.00021713,2]
[347800274,1736113855811,-191.86854,0.00021713,2]
[347800275,1736113855821,-151.0,0.00021713,2]
[347800276,1736113855831,-151.0,0.00021713,2]
[347800277,1736113855844,-500.0,0.00021713,3]
[347800278,1736113855853,-500.0,0.00021713,3]
[347800279,1736113855862,-151.0,0.00021714,2]
[347800280,1736113855871,-151.0,0.00021714,2]
[347800281,1736113855882,-216.899155,0.00021714,2]
[347800282,1736113855891,-151.0,0.00021714,2]
[347800283,1736113855900,-216.899163,0.00021714,2]
[347800284,1736113855911,-163.063005,0.00021714,2]
[347800285,1736113855920,-163.063007,0.00021714,2]
[347800286,1736113855929,-151.0,0.00021714,2]
[347800287,1736113855939,-156.767611,0.00021714,2]
[347800288,1736113855951,-156.767603,0.00021714,2]
[347800289,1736113855962,-151.0,0.00021715,2]
[347800290,1736113855973,-151.0,0.00021715,2]
[347800291,1736113855984,-1852.24,0.00021715,3]
[347800292,1736113855993,-500.0,0.00021715,3]
[347800293,1736113856004,-500.0,0.00021715,2]
[347800294,1736113856014,-4425.71421264,0.00021762,2]
[347800295,1736113856024,-151.0,0.00021773,2]
[347800296,1736113856033,-151.0,0.00021773,2]
[347800297,1736113856044,-151.0,0.00021814,2]
[347800298,1736113856054,-151.0,0.00021814,2]
[347800299,1736113856064,-151.0,0.00021814,2]
[347800300,1736113856074,-151.0,0.00021814,2]
[347800301,1736113856084,-4425.71421264,0.00021866,2]
[347800302,1736113856094,-225.864084,0.00021893,2]
[347800303,1736113856106,-151.0,0.000219,3]
[347800304,1736113856115,-500.0,0.00021921,2]
[347800305,1736113856126,-500.0,0.00021942,3]
[347800306,1736113856137,-344.9,0.00021942,3]
[347800307,1736113856147,-500.0,0.00021942,3]
[347800308,1736113856159,-1325.99,0.00021942,3]
[347800309,1736113856168,-726.67,0.00021942,3]
[347800310,1736113856179,-500.0,0.00021943,3]
[347800311,1736113856188,-500.0,0.00021943,3]
[347800312,1736113856200,-500.0,0.00021943,3]
[347800313,1736113856209,-500.0,0.00021943,3]
[347800314,1736113856219,-500.0,0.00021943,3]
[347800315,1736113856229,-500.0,0.00021943,3]
[347800316,1736113856239,-500.0,0.00021943,3]
[347800317,1736113856249,-500.0,0.00021943,3]
[347800318,1736113856258,-500.0,0.00021943,3]
[347800319,1736113856268,-385.27740292,0.0002195,3]
[347800320,1736113856278,-500.0,0.0002195,3]
[347800321,1736113856290,-500.0,0.0002195,3]
[347800322,1736113856302,-500.0,0.0002195,3]
[347800323,1736113856313,-500.0,0.0002195,3]
[347800324,1736113856324,-500.0,0.0002195,3]
[347800325,1736113856333,-500.0,0.0002195,3]
[347800326,1736113856343,-4425.71421264,0.00021969,2]
[347800327,1736113856352,-500.0,0.00021984,3]
[347800328,1736113856361,-500.0,0.00021984,3]
[347800329,1736113856371,-9560.33,0.00021984,3]
[347800330,1736113856379,-500.0,0.00021984,3]
[347800331,1736113856389,-690.37,0.00021985,3]
[347800332,1736113856398,-604.01,0.00021985,3]
[347800333,1736113856407,-151.0,0.00021986,7]
[347800334,1736113856416,-1177.18,0.00021986,3]
[347800335,1736113856425,-500.0,0.00021986,3]
[347800336,1736113856435,-500.0,0.00021987,3]
[347800337,1736113856444,-204.29740056,0.00021987,3]
[347800338,1736113856454,-166.107278,0.00021988,7]
[347800339,1736113856463,-151.0,0.00021988,7]
[347800340,1736113856472,-259.701632,0.00021989,7]
[347800341,1736113856481,-1852.24,0.00021989,3]
[347800342,1736113856490,-500.0,0.00021989,3]
[347800343,1736113856500,-500.0,0.00021989,2]
[347800344,1736113856509,-151.0,0.00021994,7]
[347800345,1736113856518,-151.0,0.00021995,7]
[347800346,1736113856526,-151.0,0.00021995,7]
[347800347,1736113856535,-28341.83890343,0.00022,2]
[347800348,1736113856545,-151.0,0.00022,7]
[347800349,1736113856553,-151.0,0.00022,7]
[347800350,1736113856562,-151.0,0.00022,7]
[347800351,1736113856571,-218.031243,0.00022,7]
[347800352,1736113856580,-151.0,0.00022,7]
[347800353,1736113856589,-221.824965,0.00022,7]
[347800354,1736113856598,-151.0,0.00022,7]
[347800355,1736113856607,-151.0,0.00022,7]
[347800356,1736113856616,-151.0,0.00022,7]
[347800357,1736113856625,-150.0,0.00022,2]
[347800358,1736113856634,-222.0,0.00022,2]
[347800359,1736113856644,-286.74498701,0.0002201,16]
[347800360,1736113856654,-173.81914418,0.00022019,2]
[347800361,1736113856663,-352.8433746,0.00022027,2]